bitfinex/quotes_SOLUSD_20241028
["timestamp","ask_amount","ask_price","bid_price","bid_amount"]
[1730117242914,70.0,176.88,176.85,17.28546888]
[1730117243411,70.0,176.88,176.84,17.28546888]
[1730117243611,70.0,176.88,176.81,5.6557]
[1730117243612,70.0,176.86,176.82,17.28546888]
[1730117243936,70.0,176.83,176.8,5.6559]
[1730117244232,87.28546888,176.83,176.79,6.2514848]
[1730117246111,17.28546888,176.82,176.79,0.5950848]
[1730117246333,17.28546888,176.81,176.79,0.5950848]
[1730117247215,87.28546888,176.81,176.79,0.5950848]
[1730117248013,17.41095888,176.8,176.79,0.5950848]
[1730117248224,17.66193888,176.8,176.79,0.5950848]
[1730117249027,37.66193888,176.8,176.79,0.5950848]
[1730117249224,43.31803888,176.8,176.79,0.5950848]
[1730117250338,37.66193888,176.8,176.79,0.5950848]
[1730117250721,23.31803888,176.8,176.79,0.5950848]
[1730117250926,0.37647,176.8,176.79,0.5950848]
[1730117251422,47.66193888,176.8,176.79,0.5950848]
[1730117251737,53.31803888,176.8,176.79,0.5950848]
[1730117252029,73.31803888,176.8,176.79,0.5950848]
[1730117255630,67.66193888,176.8,176.79,0.5950848]
[1730117255834,47.41095888,176.8,176.79,0.5950848]
[1730117256033,47.53644888,176.8,176.79,0.5950848]
[1730117256339,53.19254888,176.8,176.79,0.5950848]
[1730117256942,73.31803888,176.8,176.79,0.5950848]
[1730117258120,73.51803888,176.8,176.79,8.48e-05]
[1730117258322,70.12549,176.71,176.7,0.9813837]
[1730117258722,87.41095888,176.71,176.7,0.9813837]
[1730117259338,87.66193888,176.71,176.7,0.9813837]
[1730117259540,113.32083888,176.71,176.7,0.9813837]
[1730117260628,123.77191809,176.71,176.7,0.9813837]
[1730117260937,153.77191809,176.71,176.7,0.9813837]
[1730117262347,153.87191809,176.71,176.7,0.9813837]
[1730117262553,154.75410255,176.71,176.7,0.9813837]
[1730117264145,149.09520255,176.71,176.7,0.9813837]
[1730117264326,147.73654809,176.71,176.7,0.9813837]
[1730117265134,147.86203809,176.71,176.7,0.9813837]
[1730117265525,147.98752809,176.71,176.7,0.9813837]
[1730117265731,153.64642809,176.71,176.7,0.9813837]
[1730117266049,153.77191809,176.71,176.7,0.9813837]
[1730117268243,123.77191809,176.71,176.7,0.9813837]
[1730117269545,118.11301809,176.71,176.7,0.9813837]
[1730117269725,90.0,176.71,176.7,0.9813837]
[1730117269923,97.73654809,176.71,176.7,0.9813837]
[1730117271252,147.73654809,176.71,176.7,0.9813837]
[1730117271638,147.86203809,176.71,176.7,0.9813837]
[1730117271839,100.12549,176.71,176.7,0.9813837]
[1730117272038,100.0,176.71,176.7,6.6406837]
[1730117272431,30.0,176.71,176.7,6.6406837]
[1730117272845,100.0,176.71,176.7,0.9813837]
[1730117273235,127.73654809,176.71,176.7,0.9813837]
[1730117273428,127.86203809,176.71,176.7,0.9813837]
[1730117273634,103.77191809,176.71,176.7,0.9813837]
[1730117274345,70.37647,176.71,176.7,0.9813837]
[1730117275969,98.11301809,176.71,176.7,0.9813837]
[1730117276342,103.77191809,176.71,176.7,0.9813837]
[1730117277436,123.77191809,176.71,176.7,0.9813837]
[1730117278147,153.77191809,176.71,176.7,0.9813837]
[1730117280352,153.97191809,176.71,176.7,0.9813837]
[1730117281163,170.93191809,176.71,176.7,0.9813837]
[1730117281848,70.0,176.62,176.61,0.5950848]
[1730117282349,123.77481809,176.62,176.61,0.5950848]
[1730117282530,113.39035298,176.62,176.61,0.5950848]
[1730117282827,70.0,176.55,176.49,6.5037]
[1730117283163,0.1,176.61,176.5,5.6657]
[1730117283164,87.35208298,176.53,176.5,5.6657]
[1730117283574,70.0,176.53,176.5,23.01778298]
[1730117283689,70.0,176.53,176.51,17.35208298]
[1730117283960,70.0,176.53,176.49,33.09468298]
[1730117284461,70.0,176.51,176.49,33.09468298]
[1730117285050,0.98278711,176.54,176.5,17.35208298]
[1730117285350,87.35208298,176.55,176.5,17.35208298]
[1730117285558,70.0,176.55,176.51,17.35208298]
[1730117285967,87.35208298,176.55,176.5,17.35208298]
[1730117286135,70.0,176.53,176.5,17.35208298]
[1730117286333,70.0,176.53,176.5,23.01768298]
[1730117286864,70.0,176.53,176.51,17.35208298]
[1730117287035,70.0,176.55,176.51,17.35208298]
[1730117287358,70.0,176.55,176.52,17.35208298]
[1730117288235,70.0,176.55,176.51,17.35208298]
[1730117288732,70.0,176.55,176.52,5.665]
[1730117288951,70.0,176.55,176.52,23.01708298]
[1730117289159,70.0,176.55,176.53,17.35208298]
[1730117289460,70.0,176.57,176.54,17.35208298]
[1730117289756,70.0,176.55,176.52,5.665]
[1730117289949,70.0,176.55,176.52,23.01708298]
[1730117290369,70.0,176.55,176.51,17.35208298]
[1730117290856,70.0,176.55,176.51,23.01708298]
[1730117291954,70.0,176.51,176.46,17.35208298]
[1730117292162,0.12549,176.5,176.45,5.6673]
[1730117292452,70.0,176.48,176.45,5.6673]
[1730117292852,70.0,176.48,176.46,17.35208298]
[1730117293229,70.0,176.48,176.44,6.2626848]
[1730117293430,70.0,176.52,176.47,17.35208298]
[1730117293655,0.12549,176.51,176.5,17.35208298]
[1730117293883,70.0,176.52,176.5,17.35208298]
[1730117294059,100.0,176.54,176.51,17.35208298]
[1730117294266,30.0,176.52,176.47,0.1]
[1730117294436,70.0,176.56,176.51,17.35208298]
[1730117294751,70.0,176.56,176.55,17.35208298]
[1730117295239,100.0,176.56,176.55,17.35208298]
[1730117295439,70.0,176.58,176.55,17.35208298]
[1730117295640,70.0,176.58,176.57,17.35208298]
[1730117296940,70.0,176.58,176.56,23.01568298]
[1730117297145,70.0,176.58,176.55,17.35208298]
[1730117297342,70.0,176.56,176.53,17.35208298]
[1730117297547,70.0,176.58,176.55,17.35208298]
[1730117297750,70.0,176.58,176.54,17.35208298]
[1730117298196,70.0,176.56,176.54,17.35208298]
[1730117298535,70.0,176.56,176.52,17.35208298]
[1730117298740,70.0,176.54,176.51,23.01748298]
[1730117298939,0.1,176.6,176.5,17.35208298]
[1730117298940,70.0,176.52,176.5,17.35208298]
[1730117299142,70.0,176.52,176.5,23.01768298]
[1730117299657,70.0,176.52,176.49,17.35208298]
[1730117299854,70.0,176.52,176.48,17.35208298]
[1730117300281,70.0,176.52,176.49,17.35208298]
[1730117300461,70.0,176.52,176.5,17.35208298]
[1730117300662,5.6645,176.54,176.51,17.35208298]
[1730117300663,70.0,176.54,176.51,17.35208298]
[1730117300962,70.0,176.54,176.52,17.35208298]
[1730117301668,70.0,176.54,176.47,5.6666]
[1730117301669,70.0,176.54,176.51,17.35208298]
[1730117301849,70.0,176.54,176.52,17.35208298]
[1730117302045,70.0,176.54,176.47,5.6666]
[1730117302271,70.0,176.54,176.51,17.35208298]
[1730117302472,70.0,176.54,176.51,27.77428848]
[1730117303259,0.12549,176.53,176.51,27.77428848]
[1730117303489,70.0,176.52,176.51,27.77428848]
[1730117303645,70.0,176.52,176.45,5.6673]
[1730117303848,70.0,176.52,176.5,27.77428848]
[1730117304279,30.0,176.53,176.51,27.77428848]
[1730117304569,30.0,176.53,176.52,27.77428848]
[1730117304877,70.0,176.55,176.52,27.77428848]
[1730117305073,70.0,176.55,176.54,27.77428848]
[1730117305267,100.0,176.55,176.54,27.77428848]
[1730117305468,100.0,176.55,176.53,27.77428848]
[1730117306242,70.0,176.55,176.53,27.77428848]
[1730117307967,70.0,176.55,176.51,27.77428848]
[1730117308871,70.0,176.55,176.46,21.9913]
[1730117308872,70.0,176.55,176.5,27.77428848]
[1730117309180,70.0,176.52,176.49,27.77428848]
[1730117309365,70.0,176.52,176.47,5.6666]
[1730117309366,70.0,176.52,176.5,27.77428848]
[1730117309567,75.665,176.52,176.48,27.77428848]
[1730117309868,70.0,176.52,176.48,27.77428848]
[1730117310379,70.0,176.52,176.49,27.77428848]
[1730117311177,70.0,176.5,176.49,27.77428848]
[1730117311476,70.0,176.5,176.48,27.77428848]
[1730117312263,75.6657,176.5,176.46,43.22918848]
[1730117312481,70.0,176.48,176.46,27.77428848]
[1730117312976,70.0,176.48,176.45,27.77428848]
[1730117313756,70.0,176.48,176.44,6.2625848]
[1730117314162,14.51278,176.54,176.47,27.77428848]
[1730117314163,70.0,176.54,176.47,27.77428848]
[1730117314370,70.0,176.54,176.5,27.77428848]
[1730117314676,30.0,176.51,176.5,27.77428848]
[1730117315682,70.0,176.54,176.5,27.77428848]
[1730117315885,70.0,176.52,176.5,27.77428848]
[1730117316146,70.0,176.5,176.47,27.77428848]
[1730117316384,70.0,176.5,176.48,27.77428848]
[1730117320085,70.0,176.5,176.49,27.77428848]
[1730117320588,70.0,176.52,176.49,27.77428848]
[1730117320795,75.6646,176.54,176.51,27.77428848]
[1730117320970,30.0,176.52,176.46,5.6669]
[1730117321169,30.0,176.52,176.51,27.77428848]
[1730117321788,35.6651,176.52,176.5,27.77428848]
[1730117322100,30.0,176.52,176.51,27.77428848]
[1730117322682,100.0,176.52,176.5,27.77428848]
[1730117323191,70.0,176.52,176.49,27.77428848]
[1730117323390,70.9825262,176.52,176.49,27.77428848]
[1730117323572,76.6476262,176.52,176.49,27.77428848]
[1730117323771,70.0,176.5,176.49,27.77428848]
[1730117323970,70.9825262,176.52,176.49,27.77428848]
[1730117324172,0.9825262,176.52,176.51,27.77428848]
[1730117324379,20.0,176.54,176.51,27.77428848]
[1730117324701,20.0,176.54,176.51,17.35475427]
[1730117324877,0.98258886,176.56,176.53,17.35475427]
[1730117325194,0.98258886,176.56,176.55,17.35475427]
[1730117325901,70.0,176.59,176.55,17.35475427]
[1730117326074,70.98244555,176.59,176.57,17.35475427]
[1730117326410,70.0,176.57,176.5,5.6657]
[1730117326635,70.0,176.57,176.54,17.35475427]
[1730117326977,70.0,176.57,176.55,17.35475427]
[1730117327479,70.0,176.57,176.54,17.35475427]
[1730117327884,75.6635,176.57,176.53,17.35475427]
[1730117328089,75.6635,176.57,176.52,17.35475427]
[1730117328090,70.0,176.55,176.52,17.35475427]
[1730117328292,70.0,176.52,176.5,17.35475427]
[1730117328484,70.0,176.52,176.48,17.35475427]
[1730117329901,70.0,176.52,176.49,17.35475427]
[1730117330486,75.6651,176.52,176.49,17.35475427]
[1730117333511,70.0,176.54,176.51,17.35475427]
[1730117333706,100.0,176.52,176.51,17.35475427]
[1730117333976,100.0,176.52,176.5,17.35475427]
[1730117334213,30.0,176.52,176.51,17.35475427]
[1730117334417,70.0,176.56,176.51,17.35475427]
[1730117334589,70.0,176.56,176.52,17.35475427]
[1730117334790,70.0,176.56,176.53,17.35475427]
[1730117335411,70.0,176.56,176.53,23.01945427]
[1730117335716,70.0,176.58,176.54,17.35475427]
[1730117336044,30.0,176.55,176.53,5.6647]
[1730117336405,30.0,176.55,176.53,5.1647]
[1730117336707,30.0,176.55,176.49,17.35475427]
[1730117336708,30.0,176.55,176.5,5.6657]
[1730117336909,70.0,176.6,176.51,15.2843]
[1730117337111,70.0,176.6,176.59,17.35475427]
[1730117337305,30.0,176.6,176.59,17.35475427]
[1730117337904,70.0,176.6,176.57,17.35475427]
[1730117338225,70.0,176.6,176.55,17.35475427]
[1730117338595,75.6627,176.6,176.55,17.35475427]
[1730117338814,70.0,176.56,176.54,17.35475427]
[1730117339116,70.0,176.56,176.53,17.35475427]
[1730117340227,70.0,176.56,176.52,17.35475427]
[1730117340917,70.0,176.54,176.51,17.35475427]
[1730117341107,70.0,176.54,176.47,16.2735]
[1730117341108,70.0,176.54,176.5,17.35475427]
[1730117341916,70.0,176.54,176.51,17.35475427]
[1730117342219,75.6647,176.54,176.5,17.35475427]
[1730117343602,5.6641,176.55,176.51,17.35475427]
[1730117344599,70.0,176.54,176.51,17.35475427]
[1730117344810,70.0,176.56,176.53,17.35475427]
[1730117345014,75.6638,176.56,176.54,17.35475427]
[1730117345223,30.0,176.55,176.49,17.35475427]
[1730117345465,30.0,176.55,176.53,17.35475427]
[1730117346021,70.0,176.56,176.47,16.2735]
[1730117346022,70.0,176.54,176.52,17.35475427]
[1730117346424,70.0,176.54,176.51,17.35475427]
[1730117346626,70.0,176.54,176.5,17.35475427]
[1730117347400,6.0547,176.7,176.57,0.1]
[1730117347603,70.0,176.68,176.61,23.01685427]
[1730117347805,70.0,176.66,176.61,17.35475427]
[1730117348022,70.0,176.66,176.62,17.35475427]
[1730117348236,70.0,176.64,176.62,17.35475427]
[1730117349015,70.0,176.67,176.63,17.35475427]
[1730117349208,0.98135899,176.67,176.65,17.35475427]
[1730117349433,70.98135899,176.67,176.64,17.35475427]
[1730117349902,70.0,176.65,176.63,17.35475427]
[1730117351433,70.0,176.62,176.56,14.1588]
[1730117351608,70.0,176.62,176.59,17.35475427]
[1730117351806,70.0,176.62,176.6,17.35475427]
[1730117352101,70.0,176.66,176.61,17.35475427]
[1730117352304,70.0,176.66,176.64,17.35475427]
[1730117352506,70.0,176.66,176.63,17.35475427]
[1730117352926,70.0,176.66,176.62,17.35475427]
[1730117353130,70.0,176.63,176.62,17.35475427]
[1730117354935,70.0,176.61,176.6,17.35475427]
[1730117356626,70.0,176.63,176.6,23.01705427]
[1730117356961,70.98135899,176.67,176.62,17.35475427]
[1730117357127,90.98135899,176.67,176.66,17.35475427]
[1730117357539,33.63635427,176.72,176.66,17.35475427]
[1730117357540,70.0,176.8,176.69,0.1]
[1730117357832,70.0,176.8,176.77,17.35475427]
[1730117358636,70.0,176.8,176.76,27.69321584]
[1730117359137,70.0,176.8,176.78,27.69321584]
[1730117359733,70.0,176.8,176.79,27.69321584]
[1730117360328,70.0,176.8,176.7,20.0075]
[1730117360329,70.0,176.8,176.71,20.0]
[1730117360517,70.0,176.8,176.79,27.69321584]
[1730117361628,70.0,176.84,176.79,33.34951584]
[1730117361826,70.0,176.84,176.83,27.69321584]
[1730117365026,70.98219097,176.86,176.83,27.69321584]
[1730117365225,90.98219097,176.86,176.85,27.69321584]
[1730117365432,70.98219097,176.86,176.85,27.69321584]
[1730117366738,70.0,176.87,176.85,27.69321584]
[1730117367049,70.0,176.87,176.86,27.69321584]
[1730117368033,70.0,176.89,176.86,33.34731584]
[1730117368238,70.0,176.89,176.88,27.69321584]
[1730117369339,75.6532,176.89,176.87,27.69321584]
[1730117370852,75.6532,176.89,176.78,0.1]
[1730117370853,70.0,176.87,176.78,25.6567]
[1730117371155,70.0,176.85,176.84,27.69321584]
[1730117371934,5.654,176.87,176.84,27.69321584]
[1730117372247,70.0,176.9,176.86,27.69321584]
[1730117372428,70.0,176.9,176.89,27.69321584]
[1730117372946,75.6529,176.9,176.81,5.6557]
[1730117373125,75.6529,176.9,176.88,27.69321584]
[1730117374127,75.6529,176.9,176.87,27.69321584]
[1730117375249,75.6529,176.9,176.88,27.69321584]
[1730117376351,70.0,176.88,176.86,27.69321584]
[1730117376657,75.6537,176.88,176.86,27.69321584]
[1730117377034,75.6537,176.88,176.87,27.69321584]
[1730117377748,75.6537,176.88,176.85,27.69321584]
[1730117378054,75.6537,176.88,176.86,27.69321584]
[1730117378549,75.6537,176.88,176.87,27.69321584]
[1730117379050,70.0,176.9,176.87,27.69321584]
[1730117379354,70.0,176.91,176.89,27.69321584]
[1730117379857,0.98191985,176.92,176.9,27.69321584]
[1730117380150,75.652,176.93,176.91,27.69321584]
[1730117380461,75.652,176.93,176.91,17.2787152]
[1730117380827,75.652,176.93,176.9,17.2787152]
[1730117381757,70.0,176.91,176.87,17.2787152]
[1730117381963,70.0,176.91,176.88,17.2787152]
[1730117382955,5.6529,176.9,176.88,17.2787152]
[1730117383158,5.6529,176.9,176.87,17.2787152]
[1730117384836,70.0,176.89,176.86,17.2787152]
[1730117385173,70.0,176.89,176.84,17.2787152]
[1730117385466,70.0,176.85,176.78,16.0295]
[1730117385637,70.0,176.85,176.81,17.2787152]
[1730117386757,75.6546,176.85,176.81,17.2787152]
[1730117386959,75.6546,176.85,176.82,17.2787152]
[1730117387280,75.6546,176.85,176.81,17.2787152]
[1730117388939,75.6546,176.85,176.79,5.6564]
[1730117388940,75.6546,176.85,176.82,17.2787152]
[1730117391053,75.6546,176.85,176.8,17.2787152]
[1730117391859,75.6546,176.85,176.81,17.2787152]
[1730117394182,70.0,176.83,176.8,17.2787152]
[1730117394369,70.0,176.83,176.79,17.2787152]
[1730117394870,70.0,176.81,176.78,17.2787152]
[1730117395604,75.6558,176.81,176.79,17.2787152]
[1730117396572,75.6558,176.81,176.78,17.2787152]
[1730117399887,76.63706166,176.84,176.8,17.2787152]
[1730117400083,76.63706166,176.84,176.81,17.2787152]
[1730117400261,0.98216166,176.84,176.82,17.2787152]
[1730117400461,5.6545,176.85,176.83,17.2787152]
[1730117400885,5.6545,176.85,176.82,17.2787152]
[1730117401991,5.6545,176.85,176.81,17.2787152]
[1730117403787,5.6545,176.85,176.8,17.2787152]
[1730117404000,87.2787152,176.84,176.79,17.2787152]
[1730117404172,5.6545,176.85,176.75,17.2787152]
[1730117404173,17.2787152,176.8,176.75,17.2787152]
[1730117404487,87.2787152,176.79,176.74,17.2787152]
[1730117405066,70.0,176.79,176.74,17.2787152]
[1730117405796,70.0,176.79,176.74,22.9367152]
[1730117405992,70.0,176.77,176.72,31.4250152]
[1730117406201,17.2787152,176.76,176.71,22.9376152]
[1730117406576,70.0,176.75,176.71,17.2787152]
[1730117406804,70.0,176.73,176.68,17.2787152]
[1730117407004,70.0,176.73,176.69,17.2787152]
[1730117407194,87.2787152,176.73,176.68,17.2787152]
[1730117407702,70.0,176.73,176.68,17.2787152]
[1730117407887,75.6585,176.73,176.68,17.2787152]
[1730117408478,70.0,176.72,176.68,17.2787152]
[1730117409384,92.9375152,176.72,176.67,17.2787152]
[1730117409584,17.2787152,176.7,176.65,33.6707152]
[1730117409798,70.0,176.7,176.66,17.2787152]
[1730117410084,87.2787152,176.7,176.64,17.2787152]
[1730117410293,5.6588,176.72,176.61,5.6621]
[1730117410294,70.0,176.68,176.61,5.6621]
[1730117410492,70.0,176.68,176.64,17.2787152]
[1730117410679,70.0,176.68,176.61,5.6621]
[1730117410880,70.0,176.68,176.64,17.2787152]
[1730117412285,70.0,176.68,176.63,17.2787152]
[1730117412286,92.9387152,176.68,176.63,17.2787152]
[1730117413481,70.0,176.7,176.66,17.2787152]
[1730117413682,70.0,176.72,176.69,17.2787152]
[1730117413983,70.0,176.74,176.71,17.2787152]
[1730117414182,70.0,176.76,176.73,17.2787152]
[1730117414383,70.0,176.76,176.74,17.2787152]
[1730117415206,70.0,176.78,176.75,17.2787152]
[1730117415705,70.0,176.8,176.77,17.2787152]
[1730117416545,70.0,176.8,176.77,27.68984924]
[1730117416895,70.0,176.8,176.78,27.68984924]
[1730117417089,70.0,176.8,176.77,27.68984924]
[1730117417314,70.0,176.77,176.75,27.68984924]
[1730117417485,70.0,176.77,176.76,27.68984924]
[1730117417684,70.0,176.77,176.75,27.68984924]
[1730117418394,70.0,176.77,176.74,27.68984924]
[1730117419797,75.6571,176.77,176.74,27.68984924]
[1730117420004,70.0,176.75,176.72,27.68984924]
[1730117420507,75.6577,176.75,176.72,27.68984924]
[1730117421404,70.0,176.77,176.74,27.68984924]
[1730117421606,70.0,176.77,176.76,27.68984924]
[1730117421786,70.0,176.75,176.74,27.68984924]
[1730117422105,70.0,176.75,176.68,33.34974924]
[1730117422106,70.0,176.73,176.68,33.34974924]
[1730117422311,97.68984924,176.73,176.68,27.68984924]
[1730117422497,5.6586,176.72,176.68,27.68984924]
[1730117422698,97.68984924,176.71,176.66,27.68984924]
[1730117422890,70.0,176.69,176.65,27.68984924]
[1730117423085,70.0,176.69,176.64,27.68984924]
[1730117423309,70.0,176.69,176.65,27.68984924]
[1730117424684,70.0,176.69,176.63,27.68984924]
[1730117424685,70.0,176.67,176.63,27.68984924]
[1730117425008,75.6597,176.69,176.65,27.68984924]
[1730117425314,70.0,176.69,176.66,27.68984924]
[1730117425494,5.6593,176.7,176.66,27.68984924]
[1730117425996,5.6593,176.7,176.67,27.68984924]
[1730117426207,75.659,176.71,176.67,27.68984924]
[1730117426412,70.0,176.71,176.69,27.68984924]
[1730117426612,5.6587,176.72,176.7,27.68984924]
[1730117426815,70.0,176.71,176.7,27.68984924]
[1730117426996,70.0,176.71,176.69,27.68984924]
[1730117427195,70.0,176.71,176.68,27.68984924]
[1730117427397,70.0,176.71,176.67,27.68984924]
[1730117427608,70.0,176.69,176.65,27.68984924]
[1730117427921,27.68984924,176.7,176.63,27.68984924]
[1730117427922,70.0,176.66,176.63,27.68984924]
[1730117428395,70.0,176.68,176.65,27.68984924]
[1730117429319,70.0,176.68,176.64,33.35094924]
[1730117429521,70.0,176.68,176.64,5.6611]
[1730117429701,70.0,176.66,176.62,47.50604924]
[1730117430620,70.0,176.66,176.62,14.1546]
[1730117430796,97.68984924,176.66,176.61,5.6621]
[1730117430995,27.68984924,176.65,176.6,27.68984924]
[1730117431218,103.35064924,176.66,176.6,27.68984924]
[1730117431396,70.0,176.64,176.6,33.35224924]
[1730117432298,70.0,176.69,176.63,27.68984924]
[1730117432497,75.6596,176.69,176.66,27.68984924]
[1730117432705,75.6596,176.69,176.65,27.68984924]
[1730117434415,75.6596,176.69,176.66,27.68984924]
[1730117434918,75.6596,176.69,176.65,27.68984924]
[1730117435101,103.34944924,176.69,176.64,27.68984924]
[1730117435335,70.0,176.65,176.61,27.68984924]
[1730117436212,70.0,176.65,176.62,27.68984924]
[1730117436524,75.6609,176.65,176.61,27.68984924]
[1730117436704,75.6609,176.65,176.62,27.68984924]
[1730117437225,70.0,176.67,176.64,27.68984924]
[1730117437411,75.6597,176.69,176.65,27.68984924]
[1730117439223,70.0,176.67,176.63,27.68984924]
[1730117439626,70.0,176.67,176.62,27.68984924]
[1730117440015,70.0,176.65,176.62,27.68984924]
[1730117440336,70.0,176.65,176.63,27.68984924]
[1730117442425,70.0,176.67,176.64,27.68984924]
[1730117442610,70.0,176.64,176.63,27.68984924]
[1730117442806,70.0,176.64,176.6,27.68984924]
[1730117443009,70.0,176.64,176.59,27.68984924]
[1730117444432,70.0,176.64,176.6,27.68984924]
[1730117444433,75.6614,176.64,176.6,27.68984924]
[1730117447532,103.35124924,176.64,176.59,27.68984924]
[1730117448134,70.0,176.62,176.59,27.68984924]
[1730117449115,75.662,176.62,176.57,41.84844924]
[1730117449425,103.35184924,176.62,176.57,41.84844924]
[1730117449617,70.0,176.6,176.57,41.84844924]
[1730117450134,70.0,176.6,176.57,14.1586]
[1730117450536,75.6627,176.6,176.55,33.35384924]
[1730117450927,75.6627,176.6,176.57,27.68984924]
[1730117451629,75.6627,176.6,176.59,27.68984924]
[1730117451630,70.0,176.6,176.59,27.68984924]
[1730117451831,70.0,176.6,176.58,27.68984924]
[1730117452440,70.0,176.6,176.59,17.34214781]
[1730117453241,70.0,176.6,176.58,17.34214781]
[1730117454139,70.0,176.6,176.57,17.34214781]
[1730117455152,70.0,176.6,176.58,17.34214781]
[1730117455843,70.0,176.6,176.59,17.34214781]
[1730117456345,70.0,176.6,176.58,17.34214781]
[1730117457945,70.0,176.62,176.58,23.00494781]
[1730117458448,70.0,176.62,176.58,37.16274781]
[1730117459720,70.0,176.6,176.58,31.49994781]
[1730117459916,70.0,176.6,176.58,14.1578]
[1730117460318,70.0,176.6,176.58,31.49994781]
[1730117460953,70.0,176.6,176.58,14.1578]
[1730117461335,70.0,176.6,176.57,17.34214781]
[1730117461555,75.6626,176.6,176.56,17.34214781]
[1730117461837,75.6626,176.6,176.57,17.34214781]
[1730117462037,70.0,176.6,176.57,17.34214781]
[1730117463125,70.0,176.6,176.57,23.00554781]
[1730117463841,87.34214781,176.6,176.55,14.1602]
[1730117464019,70.0,176.57,176.53,17.34214781]
[1730117464225,70.0,176.57,176.54,17.34214781]
[1730117464929,70.0,176.59,176.56,17.34214781]
[1730117465126,70.0,176.59,176.57,17.34214781]
[1730117465527,70.0,176.59,176.58,17.34214781]
[1730117465727,70.0,176.61,176.58,17.34214781]
[1730117465933,70.0,176.61,176.59,17.34214781]
[1730117466941,70.0,176.61,176.58,17.34214781]
[1730117467340,70.0,176.59,176.56,17.34214781]
[1730117467536,70.0,176.59,176.55,17.34214781]
[1730117467943,70.0,176.57,176.54,17.34214781]
[1730117468351,70.0,176.57,176.53,17.34214781]
[1730117468526,70.0,176.55,176.52,31.50484781]
[1730117470561,70.0,176.55,176.53,17.34214781]
[1730117470728,70.0,176.57,176.54,17.34214781]
[1730117471042,70.0,176.57,176.56,17.34214781]
[1730117471546,70.0,176.53,176.45,14.1683]
[1730117471845,6.1678,176.54,176.47,17.34214781]
[1730117471846,70.0,176.49,176.47,17.34214781]
[1730117472058,70.0,176.51,176.47,17.34214781]
[1730117472923,70.0,176.51,176.49,17.34214781]
[1730117473347,70.0,176.53,176.5,17.34214781]
[1730117473558,70.0,176.53,176.49,17.34214781]
[1730117473934,87.34214781,176.53,176.46,14.1675]
[1730117474141,70.0,176.53,176.48,17.34214781]
[1730117474347,70.0,176.53,176.46,14.1675]
[1730117474348,75.665,176.53,176.49,17.34214781]
[1730117475058,70.0,176.53,176.49,17.34214781]
[1730117475756,70.0,176.51,176.47,17.34214781]
[1730117476056,70.0,176.49,176.47,17.34214781]
[1730117476432,70.0,176.47,176.45,17.34214781]
[1730117476631,70.0,176.47,176.44,23.60483261]
[1730117476952,70.0,176.49,176.46,17.34214781]
[1730117477132,70.0,176.49,176.46,23.00904781]
[1730117477337,70.0,176.47,176.45,17.34214781]
[1730117477532,70.0,176.45,176.44,0.5950848]
[1730117477738,70.0,176.47,176.44,0.5950848]
[1730117478456,23.00814781,176.49,176.44,0.5950848]
[1730117478457,70.0,176.45,176.44,0.5950848]
[1730117478698,70.0,176.45,176.44,23.60483261]
[1730117478839,70.0,176.45,176.44,17.93723261]
[1730117479063,70.0,176.45,176.44,0.5950848]
[1730117479238,70.0,176.47,176.44,6.2625848]
[1730117479553,70.0,176.47,176.46,17.34214781]
[1730117479748,70.0,176.49,176.46,17.34214781]
[1730117479941,70.0,176.49,176.47,17.34214781]
[1730117480667,76.5355,176.51,176.48,17.34214781]
[1730117480858,70.0,176.53,176.5,17.34214781]
[1730117481166,70.0,176.53,176.51,17.34214781]
[1730117481338,70.0,176.53,176.5,23.00774781]
[1730117481542,70.0,176.53,176.51,17.34214781]
[1730117481765,70.0,176.53,176.5,23.00774781]
[1730117482064,70.0,176.51,176.48,31.50724781]